Workbook

Sheet 12月份
A1: 陆 丰 市 2025 年 12 月 财 政 预 算 支 出 完 成 情 况 表
A2: 2025-12-31 | O2: 单位：万元
B3: 年 初 | C3: 年度预算计划 | F3: 累计 | G3: 占年 | H3: 上年 | I3: 比上年 | J3: 比上年 | K3: 本月 | L3: 上年 | M3: 比上年 | N3: 比上年
A4: 支 出 项 目 | B4: 预 算 | F4: 完成 | G4: 预算 | H4: 同期 | I4: 同期增 | J4: 同期增 | K4: 完成 | L4: 同月 | M4: 同月增 | N4: 同月增 | O4: 备 注
B5: 数 | C5: 上年结转 | D5: 上级补助 | E5: 本级安排 | F5: 数 | G5: % | H5: 完成 | I5: 减额 | J5: (减)% | K5: 数 | L5: 完成 | M5: 减额 | N5: (减)%
A6: 201、一般公共服务支出 | B6: 68,461 | F6: 75,144 | G6: =IF(B6=0,"",F6/B6*100) -> 109.8 | H6: 79,795 | I6: =F6-H6 -> -4,651 | J6: =IF(H6=0,"",I6/H6*100) -> -5.8 | K6: 7,347 | L6: 3,692 | M6: =K6-L6 -> 3,655 | N6: =IF(L6=0,"",M6/L6*100) -> 99.0
A7: 203、国防支出 | B7: 206 | F7: 737 | G7: 357.8 | H7: 40 | I7: 697 | J7: 1742.5 | K7: 123 | L7: 0 | M7: 123
A8: 204、公共安全支出 | B8: 48,122 | F8: 46,924 | G8: 97.5 | H8: 53,160 | I8: -6,236 | J8: -11.7 | K8: 4,814 | L8: (15,875) | M8: 20,689 | N8: -130.3
A9: 205、教育支出 | B9: 243,058 | F9: 225,136 | G9: 92.6 | H9: 224,736 | I9: 400 | J9: 0.2 | K9: 41,063 | L9: 56,756 | M9: -15,693 | N9: -27.6
A10: 206、科学技术支出 | B10: 1,653 | F10: 4,629 | G10: 280.0 | H10: 3,875 | I10: 754 | J10: 19.5 | K10: 3,260 | L10: 2,925 | M10: 335 | N10: 11.5
A11: 207、文化体育与传媒支出 | B11: 8,167 | F11: 4,924 | G11: 60.3 | H11: 4,808 | I11: 116 | J11: 2.4 | K11: 525 | L11: 998 | M11: -473 | N11: -47.4
A12: 208、社会保障和就业支出 | B12: 188,507 | F12: 201,787 | G12: 107.0 | H12: 187,593 | I12: 14,194 | J12: 7.6 | K12: 15,329 | L12: 12,494 | M12: 2,835 | N12: 22.7
A13: 210、卫生健康支出 | B13: 147,494 | F13: 136,819 | G13: 92.8 | H13: 135,242 | I13: 1,577 | J13: 1.2 | K13: 9,727 | L13: 13,721 | M13: -3,994 | N13: -29.1
A14: 211、节能环保支出 | B14: 4,662 | F14: 2,029 | G14: 43.5 | H14: 2,918 | I14: -889 | J14: -30.5 | K14: 538 | L14: 1,031 | M14: -493 | N14: -47.8
A15: 212、城乡社区支出 | B15: 17,700 | F15: 26,683 | G15: 150.8 | H15: 45,859 | I15: -19,176 | J15: -41.8 | K15: 5,830 | L15: 29,042 | M15: -23,212 | N15: -79.9
A16: 213、农林水支出 | B16: 88,375 | F16: 109,285 | G16: 123.7 | H16: 115,413 | I16: -6,128 | J16: -5.3 | K16: 25,707 | L16: 55,205 | M16: -29,498 | N16: -53.4
A17: 214、交通运输支出 | B17: 27,981 | F17: 20,056 | G17: 71.7 | H17: 14,864 | I17: 5,192 | J17: 34.9 | K17: 1,866 | L17: 3,790 | M17: -1,924 | N17: -50.8
A18: 215、资源勘探工业信息等支出 | B18: 543 | F18: 8,948 | G18: 1,647.9 | H18: 766 | I18: 8,182 | J18: 1068.1 | K18: 832 | L18: 84 | M18: 748 | N18: 890.5
A19: 216、商业服务业等支出 | B19: 641 | F19: 1,062 | G19: 165.7 | H19: 1,187 | I19: -125 | J19: -10.5 | K19: 288 | L19: 179 | M19: 109 | N19: 60.9
A20: 217、金融支出 | B20: 0 | F20: 130 | H20: 1 | I20: 129 | J20: 12900.0 | K20: 130 | L20: 0 | M20: 130
A21: 220、自然资源海洋气象等支出 | B21: 4,180 | F21: 3,995 | G21: 95.6 | H21: 4,223 | I21: -228 | J21: -5.4 | K21: 562 | L21: 913 | M21: -351 | N21: -38.4
A22: 221、住房保障支出 | B22: 19,543 | F22: 19,189 | G22: 98.2 | H22: 24,437 | I22: -5,248 | J22: -21.5 | K22: 1,572 | L22: 4,193 | M22: -2,621 | N22: -62.5
A23: 222、粮油物资储备支出 | B23: 2,650 | F23: 3,850 | G23: 145.3 | H23: 2,850 | I23: 1,000 | J23: 35.1 | K23: 1,250 | L23: 1,450 | M23: -200 | N23: -13.8
A24: 224、灾害防治及应急管理支出 | B24: 3,407 | F24: 4,573 | G24: 134.2 | H24: 2,675 | I24: 1,898 | J24: 71.0 | K24: 170 | L24: 380 | M24: -210 | N24: -55.3
A25: 232、债务付息支出 | B25: =5500-31 -> 5,469 | F25: 5,530 | G25: 101.1 | H25: 6,470 | I25: -940 | J25: -14.5 | K25: 1,926 | L25: 0 | M25: 1,926
A26: 233、债务发行费用支出 | B26: 31 | F26: 176 | G26: 567.7 | H26: 63 | I26: 113 | J26: 179.4 | K26: 24 | L26: 35 | M26: -11 | N26: -31.4
A27: 227、预备费 | B27: 10,000 | G27: 0.0 | H27: 0 | I27: 0 | K27: 0 | L27: 0 | M27: 0
A28: 229、其他支出 | B28: 17,121 | F28: 873 | G28: 5.1 | H28: 1,038 | I28: -165 | J28: -15.9 | K28: 530 | L28: 206 | M28: 324 | N28: 157.3
A29: 一、一般公共预算支出合计 | B29: =SUM(B6:B28) -> 907,971 | F29: =SUM(F6:F28) -> 902,479 | G29: 99.4 | H29: 912,013 | I29: -9,534 | J29: -1.0 | K29: 123,413 | L29: 171,219 | M29: -47,806 | N29: -27.9
A30: 二、政府性基金预算支出 | B30: 377,936 | F30: 231,648 | G30: 61.3 | H30: 319,318 | I30: -87,670 | J30: -27.5 | K30: 50,758 | L30: 67,170 | M30: -16,412 | N30: -24.4
A31: 三、国有资本经营支出 | B31: 619 | F31: 365 | G31: 59.0 | H31: 510 | I31: -145 | J31: -28.4 | K31: (360) | L31: 40 | M31: -400 | N31: -1000.0
A32: 四、债务还本支出 | B32: 2,000 | F32: 3,562 | G32: 178.1 | H32: 101,306 | I32: -97,744 | J32: -96.5 | K32: 0 | L32: 50,176 | M32: -50,176 | N32: -100.0
A33: 支出合计 | B33: =B29+B30+B31+B32 -> 1,288,526 | F33: =F29+F30+F31+F32 -> 1,138,054 | G33: 88.3 | H33: 1,333,147 | I33: -195,093 | J33: -14.6 | K33: 173,811 | L33: 288,605 | M33: -114,794 | N33: -39.8
